Cogmind - Beta 15 @@@ ROGUE MODE // 2025.05.22 @ 09:57:29 Player: SUBSUB Result: Destroyed by K0-B7K(z) with Zionite Laser-S Performance ------------- Evolutions (1) 500 Regions Visited (5) 1000 Robots Destroyed (45) 225 Value Destroyed (924) 924 Prototype IDs (10) 200 Alien Tech Used (0) 0 Bonus (1000) 1000 TOTAL SCORE: 3849 Bonus ------- Destroyed Z-Imprinter 1000 Cogmind --------- Core Integrity 0/400 Matter 270/300 Energy 100/160 System Corruption 0% Temperature Cool (6) Movement Core (600) Ox11 Location -7/Deep Caves Parts ------- > --- POWER (2) -------- Light Nuclear Core > --- PROPULSION (2) --- (None) > --- UTILITY (3) ------ Large Storage Unit Targeting Computer Shield Generator > --- WEAPON (2) ------- RU-N14's Throwing Claymores > --- INVENTORY (15) --- Zionite Light DM Reactor Zionite Light DM Reactor Light Treads Light Treads Signal Interpreter Seismic Detector Targeting Computer Zionite Weapon Casing Particle Cannon Improved Assault Rifle Grenade Launcher Plasma Cutter Heavy Hammer Peak State ------------ > --- POWER ------------ Ion Engine Light Nuclear Core > --- PROPULSION ------- Light Treads Light Treads > --- UTILITY ---------- Large Storage Unit Targeting Computer Hacking Drone Bay > --- WEAPON ----------- Improved Assault Rifle RU-N14's Throwing Claymores > --- INVENTORY -------- Light Nuclear Core Light Nuclear Core Light Treads Light Treads Signal Interpreter Seismic Detector Targeting Computer Particle Cannon Particle Cannon Grenade Launcher Plasma Cutter RU-N14's Throwing Claymores RU-N14's Throwing Claymores RU-N14's Throwing Claymores Heavy Hammer [Rating: 31] Favorites ----------- Power Light Nuclear Core Engine Ion Engine Power Core Light Nuclear Core Reactor Zionite Light DM Reactor Propulsion Light Treads Treads Light Treads Leg Aluminum Leg Utility Large Storage Unit Device Shield Generator Storage Large Storage Unit Processor Targeting Computer Protection Zionite Light Carapace Weapon Improved Assault Rifle Energy Gun Spread Laser Energy Cannon Particle Cannon Ballistic Gun Improved Assault Rifle Launcher Grenade Launcher Special Weapon RU-N14's Throwing Claymores Build | -11 -10 -9 -9 -7 -7 ------- Run | Yrd Mat Mat Min Zio Dee Slots Evolved 2 | . . 2 . . . Power 1 | . . 1 . . . Propulsion . | . . . . . . Utility 1 | . . 1 . . . Weapon . | . . . . . . Parts Attached 44 | 8 10 12 . 5 9 Power 8 | 1 2 2 . . 3 Engine 4 | 1 2 1 . . . Core 3 | . . 1 . . 2 Reactor 1 | . . . . . 1 Propulsion 7 | 2 3 2 . . . Treads 5 | . 3 2 . . . Leg 2 | 2 . . . . . Wheel . | . . . . . . Hover . | . . . . . . Flight . | . . . . . . Utility 13 | 2 3 3 . 3 2 Device 7 | 1 1 3 . 2 . Storage 3 | 1 2 . . . . Processor 1 | . . . . 1 . Hackware . | . . . . . . Protection 2 | . . . . . 2 Artifact . | . . . . . . Weapon 16 | 3 2 5 . 2 4 Energy Gun 4 | 2 1 1 . . . Energy Cannon 4 | . 1 2 . . 1 Ballistic Gun 2 | 1 . 1 . . . Ballistic Cannon . | . . . . . . Launcher 1 | . . 1 . . . Special Weapon 5 | . . . . 2 3 Impact Weapon . | . . . . . . Slashing Weapon . | . . . . . . Piercing Weapon . | . . . . . . Special Melee Weapon . | . . . . . . Unidentified Prototypes 7 | . . 1 . 3 3 Parts Lost 9 | . 3 . . . 6 Power 4 | . 2 . . . 2 Propulsion 2 | . . . . . 2 Utility 2 | . 1 . . . 1 Weapon 1 | . . . . . 1 Highest Loss Streak 6 | . 2 . . . 6 To Critical Strikes . | . . . . . . Average Backups 12 | 4 9 14 15 14 14 Power 1 | . 1 1 2 2 2 Propulsion 1 | 1 1 2 2 2 2 Utility 4 | . 5 6 6 5 3 Weapon 3 | . 1 4 4 4 6 Tool/Special . | . . . . . . Unused Backups 18 | . 7 2 . 2 7 Power 1 | . . . . . 1 Propulsion 2 | . . . . . 2 Utility 10 | . 4 1 . 2 3 Weapon 4 | . 2 1 . . 1 Tool/Special 1 | . 1 . . . . Average Slot Usage (%) 93 | . 85 97 100 99 96 Engine 9 | . 7 11 11 11 6 Core 7 | . . 9 11 11 14 Treads 22 | . 24 22 22 22 21 Leg 1 | . 3 . . . . Device 12 | . 7 21 22 15 10 Storage 12 | . 13 11 11 11 11 Processor 3 | . . . . 6 11 Energy Gun 8 | . 14 5 11 7 . Energy Cannon 3 | . . 13 . . 3 Ballistic Gun 10 | . 13 2 11 10 10 Special Weapon 2 | . . . . 3 7 Peak Build Rating 31 | 7 10 17 17 31 26 Average Rating 14 | 5 7 14 17 18 22 On Entrance 12 | . 7 10 17 17 24 Naked Turns . | . . . . . . Heaviest Build 146 | 12 146 40 39 43 43 Greatest Support 40 | 20 40 40 40 40 40 Greatest Overweight (x) 11 | 3 7 . . 1 11 Average Overweight (x) . | . . . . . . Largest Inventory Capacity 30 | 8 30 15 15 15 15 Average Capacity 16 | 7 18 15 15 15 15 Most Carried 15 | 6 15 15 15 15 15 Average Carried 12 | 4 9 14 15 14 14 Final Capacity 15 | 8 15 15 15 15 15 Final Carried 15 | 6 15 15 15 15 13 Class Distribution -------------------- 87% | Mutant 11% | Hauler-Mutant Dominant Class ---------------- Mutant | -10/Materials Mutant | -9/Materials Mutant | -9/Mines Mutant | -7/Zion Mutant | -7/Deep Caves Resources | -11 -10 -9 -9 -7 -7 ----------- Run | Yrd Mat Mat Min Zio Dee Matter Collected 787 | 287 124 201 . 50 125 Remotely . | . . . . . . Salvage Created 1395 | 111 527 440 . . 317 Parts 104 | 8 40 35 . . 21 Haulers Intercepted 5 | . 2 3 . . . Recyclers Shooed 1 | . . 1 . . . Parts Field Recycled . | . . . . . . Retrieved Matter . | . . . . . . Parts Self-Destructed 4 | . . . . 4 . Prevented . | . . . . . . Kills | -11 -10 -9 -9 -7 -7 ------- Run | Yrd Mat Mat Min Zio Dee Combat Hostiles Destroyed 27 | . 13 8 . . 6 Guns 14 | . 13 1 . . . Cannons 5 | . . 3 . . 2 AOE 8 | . . 4 . . 4 Classes Destroyed 10 | 2 6 . . . 2 Worker 2 | . 1 1 . . . Builder 2 | . 1 1 . . . Tunneler 3 | 2 . 1 . . . Hauler 5 | . 2 3 . . . Recycler 2 | 1 . 1 . . . Watcher 4 | . 2 2 . . . Swarmer 9 | . 5 4 . . . Grunt 12 | . 8 4 . . . Z-Technician 5 | . . . . . 5 Z-Light 5 | . . . . . 5 Best Kill Streak 8 | 3 3 8 . . 4 Combat Bots Only 4 | . 3 4 . . 4 Max Kills in Single Turn 3 | 1 1 3 . . 2 Gunslinging . | . . . . . . Exploded 2 | . . 2 . . 1 Melee . | . . . . . . Uniques/NPCs Destroyed 1 | . . . . . 1 Z-Imprinter (-7/Deep Caves) Combat | -11 -10 -9 -9 -7 -7 -------- Run | Yrd Mat Mat Min Zio Dee Hostile Shots Fired 175 | . 67 41 . . 67 Missed 36 | . 6 11 . . 19 Hits 139 | . 61 30 . . 48 Projectile 139 | . 61 30 . . 48 Critical Strikes 3 | . 2 1 . . . Damage Taken 2268 | . 647 266 . . 1355 Core 570 | . 162 46 . . 362 Absorbed by Shields 90 | . . 9 . . 81 Core Remaining (%) 67 | 100 35 . . . . Volleys Fired 128 | 11 50 44 . . 23 Largest 2 | 2 2 2 . . 2 Hottest 136 | 70 133 136 . . 91 Shots Fired 247 | 22 100 81 . . 44 Gun 168 | 22 99 29 . . 18 Cannon 66 | . 1 48 . . 17 Launcher 4 | . . 4 . . . Special 9 | . . . . . 9 Kinetic 85 | 11 49 7 . . 18 Thermal 149 | 11 51 70 . . 17 Explosive 13 | . . 4 . . 9 Electromagnetic . | . . . . . . Robot Hit Streak 10 | 5 9 8 . . 10 Robot Miss Streak 5 | 2 3 5 . . 2 Penetration Max . | . . . . . . Secondary Targets 5 | . 5 . . . . Max Gunslinging Chain 1 | . 1 . . . . Shots Hit Robots 158 | 14 62 53 . . 29 Core Hits 84 | 5 31 28 . . 20 Critical Kills . | . . . . . . Critical Parts Destroyed . | . . . . . . Critical Strikes 2 | 1 . . . . 1 Burn 1 | 1 . . . . . Sever 1 | . . . . . 1 Melee Attacks . | . . . . . . Impact . | . . . . . . Slashing . | . . . . . . Piercing . | . . . . . . Sneak Attacks . | . . . . . . Combat Hostiles . | . . . . . . Follow-up Attacks . | . . . . . . Damage Inflicted 3862 | 146 756 1325 . . 1635 Guns 1303 | 141 708 287 . . 167 Cannons 883 | . . 594 . . 289 Explosions 1387 | . . 444 . . 943 Melee . | . . . . . . Ramming 53 | 5 48 . . . . Kinetic 529 | 54 264 44 . . 167 Thermal 1657 | 87 444 837 . . 289 Explosive 1387 | . . 444 . . 943 Electromagnetic . | . . . . . . Impact . | . . . . . . Slashing 236 | . . . . . 236 Piercing . | . . . . . . Highest Corruption . | . . . . . . Average Corruption . | . . . . . . Corruption Purged . | . . . . . . Corruption Blocked . | . . . . . . Overload Shots . | . . . . . . Overflow Damage 147 | . 7 56 . . 84 Projectiles 50 | . . 15 . . 35 Explosions 90 | . . 41 . . 49 Melee 7 | . 7 . . . . Knockbacks . | . . . . . . Impact . | . . . . . . Kinetic . | . . . . . . Secondary . | . . . . . . Self-Inflicted Damage . | . . . . . . Shots . | . . . . . . Rammed 6 | . 6 . . . . Targets Rammed 11 | 2 9 . . . . Kicked 2 | 2 . . . . . Crushed 3 | . 3 . . . . Highest Temperature 446 | 80 199 446 . . 336 Average Temperature 92 | 42 47 112 . . 134 Received Heat Transfer 747 | . 264 72 . . 411 Effects 2 | . . 1 . . 1 Shutdowns 1 | . . 1 . . . Energy Bleed 1 | . . . . . 1 Siege Activations . | . . . . . . Martial Activations . | . . . . . . Shielding Activations . | . . . . . . Robots Disrupted . | . . . . . . Combat Hostiles . | . . . . . . Robots Corrupted 1 | . 1 . . . . Combat Hostiles . | . . . . . . Parts Fried . | . . . . . . Impact Corruptions 1 | . 1 . . . . Robots Melted . | . . . . . . Combat Hostiles . | . . . . . . Parts Melted 4 | . 2 2 . . . Heat Transferred 3533 | 333 1258 1424 . . 518 Parts Sabotaged . | . . . . . . Parts Stolen . | . . . . . . Parts Stripped . | . . . . . . Power Chain Reactions . | . . . . . . Alert | -11 -10 -9 -9 -7 -7 ------- Run | Yrd Mat Mat Min Zio Dee Maximum Alert Level . | . . . . . . Low Security (%) 100 | 100 100 100 100 . . Level 1 . | . . . . . . Level 2 . | . . . . . . Level 3 . | . . . . . . Level 4 . | . . . . . . Level 5 . | . . . . . . High Security . | . . . . . . Max Security . | . . . . . . Peak Influence 129 | 5 74 129 36 . . Initial 36 | . . 3 36 . . Average 22 | . 17 35 36 . . Influence Increases 685 | 15 371 299 . . . Destroy 0b10 Robot/C 420 | . 260 160 . . . Destroy 0b10 Robot/NC 90 | 15 30 45 . . . Destroy Leader 88 | . 48 40 . . . Successful Hack 23 | . 18 5 . . . Disable Machine 45 | . 15 30 . . . Destroy Structure 19 | . . 19 . . . Influence Decreases 685 | 15 361 215 58 36 . Entered New Map 101 | . . 7 58 36 . Time Decay 564 | 15 341 208 . . . Lost Part 20 | . 20 . . . . Squads Dispatched 3 | . 1 2 . . . Investigation 1 | . 1 . . . . Extermination . | . . . . . . Reinforcement 2 | . . 2 . . . Assault . | . . . . . . Garrison . | . . . . . . Intercept . | . . . . . . Searches Triggered . | . . . . . . Construction Impeded 1 | . . 1 . . . Haulers Reinforced . | . . . . . . Active Scanning Responses . | . . . . . . Cargo Convoy Interrupts . | . . . . . . Stealth | -11 -10 -9 -9 -7 -7 --------- Run | Yrd Mat Mat Min Zio Dee Distress Signals 2 | . 1 1 . . . Communications Jammed . | . . . . . . Distress Signals . | . . . . . . Times Spotted 51 | . 25 16 2 . 8 Peak Tracking Total 6 | . 5 6 2 . 6 Tactical Retreats . | . . . . . . Traps | -11 -10 -9 -9 -7 -7 ------- Run | Yrd Mat Mat Min Zio Dee Traps Triggered 1 | . 1 . . . . Indirectly . | . . . . . . Trap Hack Attempts . | . . . . . . Triggered . | . . . . . . Disarmed 10 | . 6 4 . . . Reprogrammed . | . . . . . . Reused . | . . . . . . Traps Extracted . | . . . . . . Installed . | . . . . . . Triggered . | . . . . . . Machines | -11 -10 -9 -9 -7 -7 ---------- Run | Yrd Mat Mat Min Zio Dee Machines Disabled 7 | . 1 2 . 3 1 Max in Single Turn 1 | . 1 1 . 1 1 Machines Repaired . | . . . . . . Machines Dismantled 3 | . . . . 3 . Machines Sabotaged . | . . . . . . Overloaded Fab Kills . | . . . . . . Hacking | -11 -10 -9 -9 -7 -7 --------- Run | Yrd Mat Mat Min Zio Dee Machines Accessed 10 | . 7 3 . . . Terminals 8 | . 6 2 . . . Fabricators . | . . . . . . Repair Stations . | . . . . . . Recycling Units 2 | . 1 1 . . . Scanalyzers . | . . . . . . Garrison Access . | . . . . . . Total Hacks 34 | . 22 12 . . . Successful 16 | . 11 5 . . . Failed 17 | . 10 7 . . . Catastrophic . | . . . . . . Database Lockouts 1 | . 1 . . . . Manual 27 | . 18 9 . . . Terminals 31 | . 21 10 . . . Fabricators . | . . . . . . Repair Stations . | . . . . . . Recycling Units 3 | . 1 2 . . . Scanalyzers . | . . . . . . Garrison Access . | . . . . . . Terminal Hacks 9 | . 7 2 . . . Prototype ID Bank 3 | . 3 . . . . Alert Level 1 | . 1 . . . . Locate Traps 1 | . 1 . . . . Disarm Traps 2 | . 1 1 . . . Hauler Manifests 1 | . . 1 . . . Zone Layout 1 | . 1 . . . . Fabricator Hacks . | . . . . . . Repair Station Hacks . | . . . . . . Recycling Unit Hacks 2 | . 1 1 . . . Report Inventory 2 | . 1 1 . . . Scanalyzer . | . . . . . . Garrison Access Hacks . | . . . . . . Unauthorized Hacks 5 | . 3 2 . . . Terminals 5 | . 3 2 . . . Botnet 4 | . 2 2 . . . Operators 1 | . 1 . . . . Fabricators . | . . . . . . Repair Stations . | . . . . . . Recycling Units . | . . . . . . Scanalyzers . | . . . . . . Garrison Access . | . . . . . . Data Cores Recovered . | . . . . . . Used . | . . . . . . Hacking Detections 7 | . 5 2 . . . Full Trace Events . | . . . . . . Feedback Events . | . . . . . . Feedback Blocked . | . . . . . . Robot Schematics Acquired . | . . . . . . Robots Built . | . . . . . . Authchips . | . . . . . . Time . | . . . . . . Total Robot Build Rating . | . . . . . . Part Schematics Acquired . | . . . . . . Parts Built . | . . . . . . Authchips . | . . . . . . Time . | . . . . . . Total Part Build Rating . | . . . . . . Parts Repaired . | . . . . . . Time . | . . . . . . Parts Recycled . | . . . . . . Recycled Matter . | . . . . . . Retrieved Matter . | . . . . . . Retrieved Components . | . . . . . . Parts Scanalyzed . | . . . . . . Part Schematics Acquired . | . . . . . . Parts Damaged . | . . . . . . Bothacking | -11 -10 -9 -9 -7 -7 ------------ Run | Yrd Mat Mat Min Zio Dee Used RIF Installer . | . . . . . . Robots Hacked . | . . . . . . Non-combat . | . . . . . . Combat . | . . . . . . Robot Hacks Applied . | . . . . . . Relay Couplers Released . | . . . . . . Fabnet Peak Effective % . | . . . . . . Robots Rewired . | . . . . . . Allies Hacked . | . . . . . . Hacks Repelled . | . . . . . . Allies | -11 -10 -9 -9 -7 -7 -------- Run | Yrd Mat Mat Min Zio Dee Total Allies . | . . . . . . Largest Group . | . . . . . . Highest-Rated Group . | . . . . . . Highest-Rated Ally . | . . . . . . Total Orders . | . . . . . . Ally Attacks . | . . . . . . Total Damage . | . . . . . . Kills . | . . . . . . Allies Corrupted . | . . . . . . Allies Melted . | . . . . . . Intel | -11 -10 -9 -9 -7 -7 ------- Run | Yrd Mat Mat Min Zio Dee Active Infowar (turns) 1784 | 51 159 928 4 642 . Sensors 1574 | . . 928 4 642 . Seismic 210 | 51 159 . . . . Robot Analysis Total . | . . . . . . Derelict Logs Recovered . | . . . . . . Drone Launches . | . . . . . . Drone Recoveries . | . . . . . . Exploration | -11 -10 -9 -9 -7 -7 ------------- Run | Yrd Mat Mat Min Zio Dee Turns Passed 5546 | 147 1908 941 4 1752 794 Spaces Moved 2715 | 79 868 480 3 951 334 Core 24 | 19 . . . . 5 Treads 2510 | . 747 480 3 951 329 Legs 181 | 60 121 . . . . Wheels . | . . . . . . Hover . | . . . . . . Flight . | . . . . . . Fastest Speed 50 | 50 120 160 160 160 160 Average Speed 181 | 122 195 160 160 173 211 Slowest Speed 720 | 200 720 160 160 240 600 Overloaded Moves . | . . . . . . Propulsion Burnouts . | . . . . . . Robots Hopped . | . . . . . . Potential Cave-ins . | . . . . . . Cave-ins Triggered . | . . . . . . Exploration Rate (%) 44 | 5 99 35 4 81 40 Regions Visited 5 Branch Regions 3 Pre-discovered Areas 1 | . . . . 1 . Known Exits Taken . | . . . . . . Unknown Exits Taken 5 | 1 1 1 1 1 . Scrap Searched 3 | . . . . 3 . Spaces Dug . | . . . . . . Terrain Destroyed 67 | . . 16 . . 51 Melee . | . . . . . . Projectile 1 | . . . . . 1 AOE 66 | . . 16 . . 50 Terrain Rammed . | . . . . . . Walls Destroyed . | . . . . . . Machines Disabled . | . . . . . . Actions | -11 -10 -9 -9 -7 -7 --------- Run | Yrd Mat Mat Min Zio Dee Total 3039 | 105 980 575 2 997 380 Wait 41 | . 10 22 . . 9 Move 2710 | 78 867 479 2 950 334 Hop . | . . . . . . Pick Up 43 | 6 24 7 . 5 1 Fast Attach 20 | 7 4 3 . 3 3 Attach 8 | . 2 1 . 1 4 Detach 1 | . . . . . 1 Swap 20 | 1 4 8 . 3 4 Drop 30 | . 10 11 . 8 1 Fire 128 | 11 50 44 . . 23 Melee . | . . . . . . Ram . | . . . . . . Kick 2 | 2 . . . . . Crush 9 | . 9 . . . . Escape Stasis . | . . . . . . Rewire . | . . . . . . Trap . | . . . . . . Miscellaneous 27 | . . . . 27 . Route ------- -11/Scrapyard -10/Materials (discovered 4 exits: *Mat x3 / [*Min]) -9/Materials -9/Mines -7/Zion (discovered 2 exits: [*Dee] / [*Pro]) -7/Deep Caves History --------- Turn | Location | Event 42 | -11/Scrapyard | Discovered new exit (range 15) 148 | -11/Scrapyard | Entered Materials 289 | -10/Materials | Discovered new exit (range 22) 301 | -10/Materials | Build established: Mutant 658 | -10/Materials | Build established: Hauler-Mutant 798 | -10/Materials | Core integrity fell below 50% 1090 | -10/Materials | Discovered new exit (range 4) 1309 | -10/Materials | Build established: Mutant 1697 | -10/Materials | Discovered new exit (range 16) 1825 | -10/Materials | Central database locked down 1941 | -10/Materials | Discovered new exit (range 10) 2056 | -10/Materials | Entered another Materials area 2056 | -9/Materials | Evolved 2 slots: Power x1, Utility x1 2932 | -9/Materials | Discovered new exit (range 14) 2997 | -9/Materials | Entered Mines 2998 | -9/Mines | A Derelict revealed a hidden shortcut to a safe place 3001 | -9/Mines | Entered Zion 3109 | -7/Zion | Learned location of Warlord (-5) 3200 | -7/Zion | Given the Hacking Drone Bay 3643 | -7/Zion | Found Prototype Device 3643 | -7/Zion | Identified Phasing AFG 4111 | -7/Zion | Discovered new exit (range 15) 4262 | -7/Zion | Found Prototype Special Weapon 4262 | -7/Zion | Identified RU-N14's Throwing Claymores 4295 | -7/Zion | Found RU-N14's Throwing Claymores 4299 | -7/Zion | Found RU-N14's Throwing Claymores 4302 | -7/Zion | Found RU-N14's Throwing Claymores 4390 | -7/Zion | Found Prototype Device 4390 | -7/Zion | Identified Hacking Drone Bay 4742 | -7/Zion | Discovered new exit (range 5) 4745 | -7/Zion | Saw the warning signs outside the Deep Caves entrance 4753 | -7/Zion | Entered Deep Caves 5202 | -7/Deep Caves | Attacked by Z-Imprinter 5209 | -7/Deep Caves | Destroyed Z-Imprinter 5246 | -7/Deep Caves | Found Prototype Protection 5246 | -7/Deep Caves | Identified Zio. Weapon Casing 5393 | -7/Deep Caves | Z-Facility disabled 5521 | -7/Deep Caves | Core integrity fell below 50% 5531 | -7/Deep Caves | Core integrity fell below 20% 5544 | -7/Deep Caves | Lost 6 parts (2p2n1u1w) 5547 | -7/Deep Caves | Destroyed by K0-B7K(z) with Zionite Laser-S Last Messages --------------- 05494_ Lgt. Nuclear Core destroyed. 05497_ Zio. Light Carapace destroyed. 05504_ GP-WYN(z) destroyed. 05504_ Destroyed Imp. Reaction Control System. 05504_ TE-AJ8(z) destroyed. 05504_ Destroyed Zio. Light Carapace. 05506_ Lgt. Nuclear Core destroyed. 05507_ 1W-5AE(z) destroyed. 05507_ Destroyed Zio. Light Carapace. 05510_ Lgt. Treads destroyed. 05512_ Particle Cannon destroyed. 05513_ Lgt. Treads destroyed. 05513_ BQ-Y6Y(z) destroyed. 05513_ Destroyed Prototype Hover Unit. 05520_ RU-N14's Throwing Claymores expended. 05520_ Destroyed Imp. Reaction Control System. 05520_ Destroyed Phase Shifter. 05520_ Destroyed Prototype Hover Unit. 05533_ OD-70A(z) destroyed. 05544_ Acquired Shield Generator. Map ----- +----------------------------------------------------+ | | | | | | | | | | | | | | | | | | | | | | | | | | | | | | | | | | | | | | | | | | | | | | | | | ???????????????????????####??????????????????????? | | ???????????????????????# @#????###############???? | | ???????????????????????# #?#### ##??? | | ???????????????????????# ### #??? | | ???????????????#?????# ; ;## #### | | ?????????????### # #;; ;# ## | | ?????????????# !;%z | | ????????? % %% | | ????????? ! | | ????????? | | ?????????? | | ?????????? """ """""" | | ??????????? """"""""""""" | | ??????????? """""""""""""" | | ??????????? """""""""""""" | | ???????????? """"""""""" | | ???????????? ""?""""""""""" | | ????????????? ""???""""""""" | | ????????????? "???"""""""""" | | ??????????????? "???""""""""" | | ????????????????? "???""""" " " | | ???????????????????? ???"""""" !%/ | | ?????????????????????? ????"""""!*/*= | | ????????????????????????????????"""""" = | | ????????????????????????????????""""""/ | | ????????????????????????????????"""""""" / | +----------------------------------------------------+ Best States ------------- Heat Dissipation 38 Energy Generation 36 Energy Capacity 310 Matter Stores 300 Matter Capacity 300 Sight Range 16 Robot Scan Range 14 Terrain Scan Density 10 Armor Coverage 400 Evasion (%) 55 Targeting Accuracy 5 Recoil Reduction 2 Item Schematics ----------------- None Robot Schematics ------------------ None Fabricated ------------ Nothing Repaired ---------- Nothing Alien Tech Used ----------------- None Achievements -------------- Are We The Baddies? Challenges ------------ None Game ------ Seed VoltaicSupersonicLaser Manual? 0 Play Time 00:39:51 Cumulative 35.2 hours Start 2025.05.22 @ 09:17:57 End 2025.05.22 @ 09:57:29 Sessions 1 Manual Loads 0 Difficulty Rogue Special Mode None Game No. 48 Rogue 48 Adventurer 0 Explorer 0 Win Type - Total 0 Types 0/0/0/0/0/0/0/0/0/0 Lore% 39 Gallery% 26 Achievement% 28 Wizard Run 0 Options --------- Layout 0 ASCII 0 Keyboard 1 Movement Vi Keybinds 0 Fullscreen 1 Font 18/SmallcapsGlow Map View 76x50 Zoom Use 0% Tactical HUD 1 Map Filters NONE Filters NONE Steam 1 RUN: f135923f-3c49-40d7-9f59-06a69c569e2a